Cogmind - Beta 14 @@@ ROGUE MODE // 2024.10.31 @ 19:55:29 Player: toydarian Result: Destroyed by D-53 Grenadier with Mini Grenade Launcher Performance ------------- Evolutions (0) 0 Regions Visited (4) 800 Robots Destroyed (30) 150 Value Destroyed (520) 520 Prototype IDs (25) 500 Alien Tech Used (0) 0 Bonus (346) 346 TOTAL SCORE: 2316 Bonus ------- Follower Combat Kills 46 Aligned with FarCom 300 Cogmind --------- Core Integrity 0/250 Matter 300/300 Energy 121/125 System Corruption 0% Temperature Cool (2) Movement Walking (260) Ox2 Location -9/Mines Parts ------- > --- POWER (1) -------- Light Ion Engine > --- PROPULSION (2) --- Aluminum Leg Aluminum Leg > --- UTILITY (2) ------ High-capacity Storage Unit > --- WEAPON (2) ------- Light Assault Rifle Light Assault Rifle > --- INVENTORY (20) --- Ion Engine Light Ion Engine Light Ion Engine Light Treads Aluminum Leg Aluminum Leg Large Matter Pod (150) Light Assault Rifle Light Assault Rifle Light Assault Rifle Light Assault Rifle Light Assault Rifle Grenade Launcher Grenade Launcher Field Lobotomy Kit (5) Blade Trap Blade Trap Blade Trap Blade Trap Peak State ------------ > --- POWER ------------ Ion Engine > --- PROPULSION ------- Light Treads Light Treads > --- UTILITY ---------- Large Storage Unit Light Armor Plating > --- WEAPON ----------- Light Assault Rifle Light Assault Rifle > --- INVENTORY -------- Aluminum Leg Aluminum Leg Large Matter Pod Small Laser Light Assault Rifle Grenade Launcher Blade Trap Blade Trap Blade Trap Blade Trap [Rating: 8] Favorites ----------- Power Light Ion Engine Engine Light Ion Engine Propulsion Light Treads Treads Light Treads Leg Aluminum Leg Utility High-capacity Storage Unit Device Sensor Array Storage High-capacity Storage Unit Protection Light Armor Plating Weapon Light Assault Rifle Ballistic Gun Light Assault Rifle Launcher Grenade Launcher Build | -11 -10 -10 -10 -9 ------- Run | Yrd Mat Min Exi Min Slots Evolved . | . . . . . Power . | . . . . . Propulsion . | . . . . . Utility . | . . . . . Weapon . | . . . . . Parts Attached 32 | 6 13 5 . 8 Power 4 | 1 2 1 . . Engine 4 | 1 2 1 . . Core . | . . . . . Reactor . | . . . . . Propulsion 7 | 2 2 . . 3 Treads 2 | . 2 . . . Leg 5 | 2 . . . 3 Wheel . | . . . . . Hover . | . . . . . Flight . | . . . . . Utility 6 | 1 3 2 . . Device 1 | . 1 . . . Storage 4 | 1 2 1 . . Processor . | . . . . . Hackware . | . . . . . Protection 1 | . . 1 . . Artifact . | . . . . . Weapon 15 | 2 6 2 . 5 Energy Gun . | . . . . . Energy Cannon . | . . . . . Ballistic Gun 13 | 2 4 2 . 5 Ballistic Cannon . | . . . . . Launcher 2 | . 2 . . . Special Weapon . | . . . . . Impact Weapon . | . . . . . Slashing Weapon . | . . . . . Piercing Weapon . | . . . . . Special Melee Weapon . | . . . . . Unidentified Prototypes . | . . . . . Parts Lost 7 | . 2 3 . 2 Power 2 | . 1 1 . . Propulsion 2 | . . . . 2 Utility 2 | . 1 1 . . Weapon 1 | . . 1 . . Highest Loss Streak 2 | . 2 2 . 2 To Critical Strikes . | . . . . . Average Slot Usage (%) 92 | . 97 90 85 84 Engine 13 | . 13 14 14 14 Treads 14 | . 1 28 28 15 Leg 13 | . 26 . . 12 Device 5 | . 11 . . . Storage 14 | . 14 14 14 14 Protection 1 | . . 5 . . Ballistic Gun 27 | . 27 27 28 28 Peak Build Rating 8 | 6 7 8 8 8 Average Rating 7 | 4 6 7 7 7 On Entrance 5 | . 6 6 7 8 Naked Turns . | . . . . . Heaviest Build 86 | 10 86 50 45 45 Greatest Support 40 | 20 40 40 40 40 Greatest Overweight (x) 4 | . 4 1 1 4 Average Overweight (x) . | . 1 . 1 1 Largest Inventory Capacity 25 | 8 25 20 20 20 Average Capacity 18 | 6 17 17 20 20 Most Carried 20 | 4 9 18 17 20 Average Carried 11 | 2 7 14 16 18 Final Capacity 20 | 8 15 20 20 20 Final Carried 19 | 4 6 16 17 19 Class Distribution -------------------- 98% | Mutant Dominant Class ---------------- Mutant | -10/Materials Mutant | -10/Mines Mutant | -10/Exiles Mutant | -9/Mines Resources | -11 -10 -10 -10 -9 ----------- Run | Yrd Mat Min Exi Min Matter Collected 700 | 260 146 186 . 108 Remotely . | . . . . . Salvage Created 842 | . 278 333 . 231 Parts 59 | . 25 29 . 5 Haulers Intercepted 1 | . 1 . . . Recyclers Shooed 2 | . 1 . . 1 Parts Field Recycled . | . . . . . Retrieved Matter . | . . . . . Parts Self-Destructed . | . . . . . Prevented . | . . . . . Kills | -11 -10 -10 -10 -9 ------- Run | Yrd Mat Min Exi Min Combat Hostiles Destroyed 25 | . 11 11 . 3 Guns 24 | . 10 11 . 3 AOE 1 | . 1 . . . Classes Destroyed 7 | . 5 . . 2 Worker 2 | . 1 1 . . Hauler 1 | . 1 . . . Recycler 1 | . . . . 1 Operator 1 | . 1 . . . Swarmer 17 | . 10 7 . . Grunt 7 | . 1 4 . 2 Duelist 1 | . . . . 1 Best Kill Streak 3 | . 3 3 . 2 Combat Bots Only 3 | . 3 3 . 2 Max Kills in Single Turn 2 | . 2 1 . 1 Gunslinging 1 | . 1 . . . Exploded 1 | . 1 . . . Melee . | . . . . . Uniques/NPCs Destroyed . | . . . . . Combat | -11 -10 -10 -10 -9 -------- Run | Yrd Mat Min Exi Min Hostile Shots Fired 127 | . 47 55 . 25 Missed 26 | . 15 7 . 4 Damage Taken 1270 | . 288 494 . 488 Core 276 | . 47 102 . 127 Absorbed by Shields . | . . . . . Core Remaining (%) 100 | 100 . . . . Volleys Fired 94 | . 32 43 . 19 Largest 2 | . 2 2 . 2 Hottest 50 | . 50 40 . 40 Shots Fired 186 | . 63 85 . 38 Gun 184 | . 61 85 . 38 Cannon . | . . . . . Launcher 2 | . 2 . . . Special . | . . . . . Kinetic 184 | . 61 85 . 38 Thermal . | . . . . . Explosive 2 | . 2 . . . Electromagnetic . | . . . . . Robot Hit Streak 7 | . 4 6 . 7 Robot Miss Streak 5 | . 5 4 . 2 Penetration Max . | . . . . . Secondary Targets 2 | . 2 . . . Max Gunslinging Chain 1 | . 1 . . . Shots Hit Robots 110 | . 31 51 . 28 Core Hits 56 | . 19 25 . 12 Critical Kills . | . . . . . Critical Parts Destroyed . | . . . . . Critical Strikes . | . . . . . Melee Attacks . | . . . . . Impact . | . . . . . Slashing . | . . . . . Piercing . | . . . . . Sneak Attacks . | . . . . . Combat Hostiles . | . . . . . Follow-up Attacks . | . . . . . Damage Inflicted 1077 | . 445 403 . 229 Guns 903 | . 271 403 . 229 Cannons . | . . . . . Explosions 174 | . 174 . . . Melee . | . . . . . Ramming . | . . . . . Kinetic 903 | . 271 403 . 229 Thermal . | . . . . . Explosive 174 | . 174 . . . Electromagnetic . | . . . . . Impact . | . . . . . Slashing . | . . . . . Piercing . | . . . . . Highest Corruption . | . . . . . Average Corruption . | . . . . . Corruption Purged . | . . . . . Corruption Blocked . | . . . . . Overload Shots . | . . . . . Overflow Damage 28 | . 28 . . . Projectiles . | . . . . . Explosions 28 | . 28 . . . Melee . | . . . . . Knockbacks . | . . . . . Impact . | . . . . . Kinetic . | . . . . . Secondary . | . . . . . Self-Inflicted Damage 13 | . 13 . . . Shots 1 | . 1 . . . Rammed . | . . . . . Targets Rammed . | . . . . . Kicked . | . . . . . Crushed . | . . . . . Highest Temperature 34 | . 10 32 . 34 Average Temperature 11 | . 7 10 . 14 Received Heat Transfer 234 | . . 162 . 72 Siege Activations . | . . . . . Robots Corrupted . | . . . . . Combat Hostiles . | . . . . . Parts Fried . | . . . . . Impact Corruptions . | . . . . . Robots Melted . | . . . . . Combat Hostiles . | . . . . . Parts Melted . | . . . . . Heat Transferred . | . . . . . Parts Sabotaged . | . . . . . Parts Stolen . | . . . . . Parts Stripped . | . . . . . Power Chain Reactions . | . . . . . Alert | -11 -10 -10 -10 -9 ------- Run | Yrd Mat Min Exi Min Peak Influence 205 | . 176 205 . 130 Initial 35 | . . 35 . . Average 64 | . 54 76 . 94 Maximum Alert Level 1 | . . 1 . . Low Security (%) 99 | 100 100 98 . 100 Level 1 . | . . 1 . . Level 2 . | . . . . . Level 3 . | . . . . . Level 4 . | . . . . . Level 5 . | . . . . . High Security . | . . . . . Max Security . | . . . . . Squads Dispatched 2 | . 1 . . 1 Investigation . | . . . . . Extermination . | . . . . . Reinforcement 1 | . 1 . . . Assault 1 | . . . . 1 Garrison . | . . . . . Intercept . | . . . . . Searches Triggered . | . . . . . Construction Impeded . | . . . . . Haulers Reinforced . | . . . . . Active Scanning Responses . | . . . . . Cargo Convoy Interrupts . | . . . . . Stealth | -11 -10 -10 -10 -9 --------- Run | Yrd Mat Min Exi Min Distress Signals 1 | . 1 . . . Communications Jammed . | . . . . . Distress Signals . | . . . . . Times Spotted 49 | . 26 13 . 10 Peak Tracking Total 5 | . 5 3 . 3 Tactical Retreats 3 | . 1 2 . . Traps | -11 -10 -10 -10 -9 ------- Run | Yrd Mat Min Exi Min Traps Triggered 2 | . 2 . . . Indirectly . | . . . . . Trap Hack Attempts . | . . . . . Triggered . | . . . . . Disarmed . | . . . . . Reprogrammed . | . . . . . Reused . | . . . . . Traps Extracted . | . . . . . Installed . | . . . . . Triggered . | . . . . . Most Traps Carried 4 | . . 4 4 4 Machines | -11 -10 -10 -10 -9 ---------- Run | Yrd Mat Min Exi Min Machines Disabled . | . . . . . Max in Single Turn . | . . . . . Machines Repaired . | . . . . . Machines Dismantled . | . . . . . Machines Sabotaged . | . . . . . Overloaded Fab Kills . | . . . . . Hacking | -11 -10 -10 -10 -9 --------- Run | Yrd Mat Min Exi Min Machines Accessed 7 | . 6 . 1 . Terminals 5 | . 5 . . . Fabricators . | . . . . . Repair Stations . | . . . . . Recycling Units 1 | . 1 . . . Scanalyzers . | . . . . . Garrison Access . | . . . . . Total Hacks 12 | . 11 . 1 . Successful 8 | . 7 . 1 . Failed 4 | . 4 . . . Catastrophic . | . . . . . Database Lockouts . | . . . . . Manual 2 | . 1 . 1 . Terminals 9 | . 9 . . . Fabricators . | . . . . . Repair Stations . | . . . . . Recycling Units 2 | . 2 . . . Scanalyzers . | . . . . . Garrison Access . | . . . . . Terminal Hacks 6 | . 5 . 1 . Prototype ID Bank 1 | . 1 . . . Alert Level 1 | . 1 . . . Dispatch Records 1 | . 1 . . . Patrol Status 1 | . 1 . . . Hauler Manifests 1 | . 1 . . . Derelict Proto ID Bank 1 | . . . 1 . Fabricator Hacks . | . . . . . Repair Station Hacks . | . . . . . Recycling Unit Hacks 2 | . 2 . . . Process 1 | . 1 . . . Retrieve Matter 1 | . 1 . . . Scanalyzer . | . . . . . Garrison Access Hacks . | . . . . . Unauthorized Hacks . | . . . . . Terminals . | . . . . . Fabricators . | . . . . . Repair Stations . | . . . . . Recycling Units . | . . . . . Scanalyzers . | . . . . . Garrison Access . | . . . . . Data Cores Recovered . | . . . . . Used . | . . . . . Hacking Detections 3 | . 3 . . . Full Trace Events . | . . . . . Feedback Events . | . . . . . Feedback Blocked . | . . . . . Robot Schematics Acquired . | . . . . . Robots Built . | . . . . . Authchips . | . . . . . Time . | . . . . . Total Robot Build Rating . | . . . . . Part Schematics Acquired . | . . . . . Parts Built . | . . . . . Authchips . | . . . . . Time . | . . . . . Total Part Build Rating . | . . . . . Parts Repaired . | . . . . . Time . | . . . . . Parts Recycled . | . . . . . Recycled Matter 311 | . 311 . . . Retrieved Matter 345 | . 345 . . . Retrieved Components . | . . . . . Parts Scanalyzed . | . . . . . Part Schematics Acquired . | . . . . . Parts Damaged . | . . . . . Bothacking | -11 -10 -10 -10 -9 ------------ Run | Yrd Mat Min Exi Min Used RIF Installer . | . . . . . Robots Hacked . | . . . . . Non-combat . | . . . . . Combat . | . . . . . Robot Hacks Applied . | . . . . . Relay Couplers Released . | . . . . . Fabnet Peak Effective % . | . . . . . Robots Rewired . | . . . . . Allies Hacked . | . . . . . Hacks Repelled . | . . . . . Allies | -11 -10 -10 -10 -9 -------- Run | Yrd Mat Min Exi Min Total Allies 2 | . . 1 . 1 Largest Group 1 | . . 1 1 1 Highest-Rated Group 31 | . . 31 31 31 Highest-Rated Ally 31 | . . 31 31 31 Total Orders . | . . . . . Ally Attacks 7 | . . . . 7 Total Damage 126 | . . . . 126 Kills 4 | . . . . 4 Allies Corrupted . | . . . . . Allies Melted . | . . . . . Intel | -11 -10 -10 -10 -9 ------- Run | Yrd Mat Min Exi Min Robot Analysis Total . | . . . . . Derelict Logs Recovered 4 | . . 3 . 1 Drone Launches . | . . . . . Drone Recoveries . | . . . . . Exploration | -11 -10 -10 -10 -9 ------------- Run | Yrd Mat Min Exi Min Turns Passed 3678 | 61 1672 1192 498 255 Spaces Moved 1573 | 42 719 530 208 74 Core 3 | 3 . . . . Treads 820 | . 42 530 208 40 Legs 750 | 39 677 . . 34 Wheels . | . . . . . Hover . | . . . . . Flight . | . . . . . Fastest Speed 50 | 50 120 160 240 240 Average Speed 212 | 115 215 198 240 252 Slowest Speed 400 | 120 400 240 240 400 Overloaded Moves . | . . . . . Propulsion Burnouts . | . . . . . Robots Hopped . | . . . . . Cave-ins Triggered . | . . . . . Exploration Rate (%) 54 | 3 95 95 59 22 Regions Visited 4 Branch Regions 3 Pre-discovered Areas 1 | . . 1 . . Known Exits Taken . | . . . . . Unknown Exits Taken 4 | 1 1 1 1 . Scrap Searched 3 | . . 2 . 1 Spaces Dug 16 | . 16 . . . Terrain Destroyed 16 | . 16 . . . Melee . | . . . . . Projectile . | . . . . . AOE 16 | . 16 . . . Terrain Rammed . | . . . . . Walls Destroyed . | . . . . . Machines Disabled . | . . . . . Actions | -11 -10 -10 -10 -9 --------- Run | Yrd Mat Min Exi Min Total 1761 | 51 786 603 208 113 Wait 27 | . 13 10 . 4 Move 1569 | 41 718 529 207 74 Hop . | . . . . . Pick Up 30 | 4 7 13 1 5 Fast Attach 8 | 6 1 1 . . Attach 10 | . 5 2 . 3 Detach 1 | . 1 . . . Swap 14 | . 7 2 . 5 Drop 8 | . 2 3 . 3 Fire 94 | . 32 43 . 19 Melee . | . . . . . Ram . | . . . . . Kick . | . . . . . Crush . | . . . . . Escape Stasis . | . . . . . Rewire . | . . . . . Trap . | . . . . . Miscellaneous . | . . . . . Route ------- -11/Scrapyard -10/Materials (discovered 4 exits: [*Mat x3] / [*Min]) -10/Mines (discovered 3 exits: [*Mat x2] / *Exi) -10/Exiles -9/Mines History --------- Turn | Location | Event 10 | -11/Scrapyard | Discovered new exit (range 14) 62 | -11/Scrapyard | Entered Materials 316 | -10/Materials | Build established: Mutant 924 | -10/Materials | Discovered new exit (range 3) 975 | -10/Materials | Discovered new exit (range 16) 1024 | -10/Materials | Discovered new exit (range 14) 1123 | -10/Materials | Discovered new exit (range 16) 1734 | -10/Materials | Entered Mines 1744 | -10/Mines | Learned 2 Materials zone layouts 1790 | -10/Mines | Found a hidden stash of uninstalled traps 1941 | -10/Mines | Discovered new exit (range 7) 2074 | -10/Mines | Discovered new exit (range 12) 2424 | -10/Mines | Learned location of Recycling (-8) 2509 | -10/Mines | Core integrity fell below 50% 2624 | -10/Mines | Learned Materials stockpile data 2660 | -10/Mines | Received a Mining Laser from a helpful Derelict 2842 | -10/Mines | Found a damaged Exp. Sensor Array with a note attached 2917 | -10/Mines | Deemed a non-threat by the Exiles lab entrance 2917 | -10/Mines | Discovered new exit (range 5) 2926 | -10/Mines | Entered Exiles 2926 | -10/Exiles | Accompanied by 1 ally 2982 | -10/Exiles | Met 8R-AWN 3025 | -10/Exiles | Met EX-HEX 3092 | -10/Exiles | Met EX-BIN 3126 | -10/Exiles | Aligned with FarCom system 3128 | -10/Exiles | Given EX-Vault access code 3186 | -10/Exiles | Opened EX-Vault 3200 | -10/Exiles | Found Field Lobotomy Kit 3249 | -10/Exiles | Warned to stay clear of 0b10 Research branches 3284 | -10/Exiles | Exiles lab attacked by MAIN.C 3405 | -10/Exiles | Discovered new exit (range 10) 3424 | -10/Exiles | Left Exiles lab with Field Lobotomy Kit 3424 | -10/Exiles | Entered Mines 3425 | -9/Mines | Met a Derelict testing a Signal Generator 3548 | -9/Mines | Core integrity fell below 20% 3581 | -9/Mines | Learned Materials emergency access door positions 3654 | -9/Mines | Assembled infested the area 3659 | -9/Mines | Assisted by a Guerilla fighting off Assembled 3679 | -9/Mines | Destroyed by D-53 Grenadier with Mini Grenade Launcher Last Messages --------------- 03639_ Dropped Lgt. Assault Rifle. 03641_ K-01 Serf collects debris. 03642_ R-06 Scavenger collects Lgt. Assault Rifle. 03647_ R-06 Scavenger collects Flight Unit. 03651_ R-06 Scavenger collects Tractor Beam. 03654_ ALERT: Infestation in the mines, dispatching Demolisher response squad. 03654_ R-06 Scavenger collects Flight Unit. 03659_ A derelict emerges from the shadows: "You need to get out of here! I've been tracking a group of Assembled to figure out where they're coming from, and they're closing on this area, come on!" 03667_ T-07 Excavator is excavating. 03670_ D-53 Grenadier unfolds itself. 03670_ T-07 Excavator is excavating. 03676_ Searching scrap... 03676_ Found Plasma Cutter. 03676_ Found Rocket Launcher. 03676_ Found Disposable Heat Sink. 03676_ Found 57 Matter. [Achievement: Back For More] Map ----- +----------------------------------------------------+ | ### ##?????????????????????????????????????????? | | #######??##????# ????????????????????????????????? | | ##?????# ##?# ???????????????????????????????? | | ##????? ## #???????????????????????????????? | | #????? #???????????????????????????????? | | #????? #???????????????????????????????? | | [%##????? #???????????????????????????????? | | #=#??????# #???????????????????????????????? | | #[#?????## #???????????????????????????????? | | #%###?### #???????#???????????????????????? | | #%% ### [ #??????? #??????????????????????? | | ###%## #???????? ???????????????????????? | | ??#"## #????????# ???????????????????????? | | ??#% #????????# ???????????????????????? | | ??# ##???????# #???????????????????????? | | ??##### [ ###?????# #???????????????????????? | | ??????# " [ ##???##z#???????????????????????? | | ?????# !##%*! #### ##??????????????????????? | | ??? ###[ ! # ##?????????????????????? | | ? #?## ##????????????????????? | | ###### ??## #????????????????????? | | ?????# [???## dd #????????????????????? | | ?????## ???### #????????????????????? | | ??????## ?????# #?## #?????????????????????? | | ????????# ?????# #?# #?????????????????????? | | ?????????# ????# #?## !%@ #?????????????????????? | | ??????????# ????# #??# | #???????????????????? | | ????????????????# #??## ##???????????????????? | | ????????????????# #???## #????????????????????? | | ????????????????? ????? #????????????????????? | | ????????????????? ????? #????????????????????? | | ????????????????? ????# ##????????????????????? | | ????????????????? ????## ##?????????????????????? | | ????????????????? ?????####??????????????????????? | | ????????????????? ???????????????????????????????? | | ?????????????????????????????????????????????????? | | ?????????????????????????????????????????????????? | | ?????????????????????????????????????????????????? | | ?????????????????????????????????????????????????? | | ?????????????????????????????????????????????????? | | ?????????????????????????????????????????????????? | | ?????????????????????????????????????????????????? | | ?????????????????????????????????????????????????? | | ?????????????????????????????????????????????????? | | ?????????????????????????????????????????????????? | | ?????????????????????????????????????????????????? | | ?????????????????????????????????????????????????? | | ?????????????????????????????????????????????????? | | ?????????????????????????????????????????????????? | | ?????????????????????????????????????????????????? | +----------------------------------------------------+ Best States ------------- Heat Dissipation 25 Energy Generation 10 Energy Capacity 250 Matter Stores 300 Matter Capacity 300 Sight Range 16 Robot Scan Range 14 Terrain Scan Density 10 Armor Coverage 150 Evasion (%) 55 Recoil Reduction 2 Item Schematics ----------------- None Robot Schematics ------------------ None Fabricated ------------ Nothing Alien Tech Used ----------------- None Achievements -------------- Back For More Challenges ------------ None Game ------ Seed BoreHardenedActivator Manual? 0 Play Time 00:18:33 Cumulative 36.2 hours Start 2024.10.31 @ 19:39:18 End 2024.10.31 @ 19:55:29 Sessions 1 Manual Loads 0 Difficulty Rogue Special Mode None Game No. 50 Rogue 43 Adventurer 0 Explorer 7 Win Type - Total 1 Types 1/0/0/0/0/0/0/0/0 Lore% 12 Gallery% 23 Achievement% 27 Wizard Run 0 Options --------- Layout 0 ASCII 0 Keyboard 0 Movement Mouse Keybinds 0 Fullscreen 1 Font 24/Terminus Map View 76x50 Zoom Use 0% Tactical HUD 1 Map Filters NONE Filters NONE Steam 1 RUN: 5457597d-fc46-4216-a344-7b972f064a88